fUST/lending_fUST_20250813
["ID","MTS","AMOUNT","RATE_DAILY","PERIOD"]
[378861565,1755054807330,460.0,0.00029999,120]
[378861566,1755054808729,460.0,0.00029999,120]
[378861567,1755054812025,460.0,0.00029999,120]
[378861568,1755054814413,460.0,0.00029999,120]
[378861569,1755054815611,460.0,0.00029999,120]
[378861570,1755054817176,460.0,0.00029999,120]
[378861571,1755054820561,460.0,0.00029999,120]
[378861572,1755054820685,460.0,0.00029999,120]
[378861573,1755054821951,460.0,0.00029999,120]
[378861574,1755054822553,460.0,0.00029999,120]
[378861575,1755054823919,497.56422764,0.00029999,120]
[378861576,1755054824598,460.0,0.00029999,120]
[378861577,1755054826260,460.0,0.00029999,120]
[378861578,1755054828975,1877.46,0.00029999,120]
[378861579,1755054829688,460.0,0.00029999,120]
[378861580,1755054831296,460.0,0.00029999,120]
[378861581,1755054832405,460.0,0.00029999,120]
[378861582,1755054834293,460.0,0.00029999,120]
[378861583,1755054836012,2455.21,0.00029999,120]
[378861584,1755054836064,460.0,0.00029999,120]
[378861585,1755054838435,917.92,0.00029999,120]
[378861586,1755054842466,460.0,0.00029999,120]
[378861587,1755054844343,460.0,0.00029999,120]
[378861588,1755054845406,460.0,0.00029999,120]
[378861589,1755054846176,860.45,0.00029999,120]
[378861590,1755054846609,460.0,0.00029999,120]
[378861591,1755054847605,461.81099563,0.00029999,120]
[378861592,1755054852144,460.0,0.00029999,120]
[378861593,1755054852736,460.0,0.00029999,120]
[378861594,1755054854294,460.0,0.00029999,120]
[378861595,1755054860602,460.0,0.00029999,120]
[378861596,1755054862885,1419.41,0.00029999,120]
[378861597,1755054863474,460.0,0.00029999,120]
[378861598,1755054864392,525.24822642,0.00029999,120]
[378861599,1755054864457,460.0,0.00029999,120]
[378861600,1755054868228,4956.24,0.00029999,120]
[378861601,1755054869178,460.0,0.00029999,120]
[378861602,1755054869439,827.07,0.00029999,120]
[378861603,1755054869495,460.0,0.00029999,120]
[378861604,1755054871734,460.0,0.00029999,120]
[378861605,1755054872020,428.36807492,0.00029999,120]
[378861606,1755054872283,626.71,0.00029999,120]
[378861607,1755054872483,460.0,0.00029999,120]
[378861608,1755054876501,460.0,0.00029999,120]
[378861609,1755054880666,460.0,0.00029999,120]
[378861610,1755054881220,460.0,0.00029999,120]
[378861611,1755054881276,460.0,0.00029999,120]
[378861612,1755054881533,460.0,0.00029999,120]
[378861613,1755054883210,460.0,0.00029999,120]
[378861614,1755054883921,460.0,0.00029999,120]
[378861615,1755054889310,460.0,0.00029999,120]
[378861616,1755054889483,460.0,0.00029999,120]
[378861617,1755054889692,460.0,0.00029999,120]
[378861618,1755054889778,460.0,0.00029999,120]
[378861619,1755054890065,469.45629793,0.00029999,120]
[378861620,1755054890180,721.99,0.00029999,120]
[378861621,1755054892170,1280.02,0.00029999,120]
[378861622,1755054894498,460.0,0.00029999,120]
[378861623,1755054895726,460.0,0.00029999,120]
[378861624,1755054896783,1059.78,0.00029999,120]
[378861625,1755054899689,460.0,0.00029999,120]
[378861626,1755054902390,460.0,0.00029999,120]
[378861627,1755054904804,460.0,0.00029999,120]
[378861628,1755054909160,460.0,0.00029999,120]
[378861629,1755054914666,1292.26,0.00029999,120]
[378861630,1755054918482,878.46,0.00029999,120]
[378861631,1755054919380,460.0,0.00029999,120]
[378861632,1755054921156,464.81015392,0.00029999,120]
[378861633,1755054921997,1085.25,0.00029999,120]
[378861634,1755054926903,460.0,0.00029999,120]
[378861635,1755054929008,470.07934735,0.00029999,120]
[378861636,1755054930755,468.13132172,0.00029999,120]
[378861637,1755054932034,460.0,0.00029999,120]
[378861638,1755054932938,461.67110772,0.00029999,120]
[378861639,1755054935002,562.37574978,0.00029999,120]
[378861640,1755054935235,460.0,0.00029999,120]
[378861641,1755054935472,460.0,0.00029999,120]
[378861642,1755054935891,460.0,0.00029999,120]
[378861643,1755054937077,460.0,0.00029999,120]
[378861644,1755054941331,460.0,0.00029999,120]
[378861645,1755054947516,460.0,0.00029999,120]
[378861646,1755054947877,460.0,0.00029999,120]
[378861647,1755054947934,460.0,0.00029999,120]
[378861648,1755054949766,463.78679736,0.00029999,120]
[378861649,1755054950368,466.28624216,0.00029999,120]
[378861650,1755054953466,460.0,0.00029999,120]
[378861651,1755054954815,460.0,0.00029999,120]
[378861652,1755054962878,460.0,0.00029999,120]
[378861653,1755054962943,463.12702463,0.00029999,120]
[378861654,1755054963626,510.49,0.00029999,120]
[378861655,1755054971597,460.0,0.00029999,120]
[378861656,1755054972975,460.0,0.00029999,120]
[378861657,1755054974599,460.0,0.00029999,120]
[378861658,1755054976384,503.27,0.00029999,120]
[378861659,1755054976617,460.0,0.00029999,120]
[378861660,1755054977663,460.0,0.00029999,120]
[378861661,1755054983133,461.76197428,0.00029999,120]
[378861662,1755054986594,460.0,0.00029999,120]
[378861663,1755054986759,460.0,0.00029999,120]
[378861664,1755054988098,460.0,0.00029999,120]
[378861665,1755054991577,463.77947025,0.00029999,120]
[378861666,1755054995014,460.0,0.00029999,120]
[378861667,1755054999945,460.0,0.00029999,120]
[378861668,1755055001591,460.0,0.00029999,120]
[378861669,1755055003772,460.0,0.00029999,120]
[378861670,1755055006787,460.0,0.00029999,120]
[378861671,1755055006840,460.0,0.00029999,120]
[378861672,1755055011995,465.5119916,0.00029999,120]
[378861673,1755055012454,2332.2,0.00029999,120]
[378861674,1755055012524,460.0,0.00029999,120]
[378861675,1755055013761,464.28318477,0.00029999,120]
[378861676,1755055014621,460.0,0.00029999,120]
[378861677,1755055015667,460.0,0.00029999,120]
[378861678,1755055018869,466.86945826,0.00029999,120]
[378861679,1755055020714,460.0,0.00029999,120]
[378861680,1755055022794,1799.24,0.00029999,120]
[378861681,1755055024596,472.08994442,0.00029999,120]
[378861683,1755055031591,524.98789665,0.00029999,120]
[378861684,1755055032472,460.0,0.00029999,120]
[378861685,1755055033007,792.61,0.00029999,120]
[378861686,1755055033723,460.0,0.00029999,120]
[378861687,1755055033887,463.92160783,0.00029999,120]
[378861688,1755055033939,719.43,0.00029999,120]
[378861689,1755055035900,460.0,0.00029999,120]
[378861690,1755055036868,460.0,0.00029999,120]
[378861691,1755055037279,465.0332204,0.00029999,120]
[378861692,1755055038427,460.0,0.00029999,120]
[378861693,1755055039869,460.0,0.00029999,120]
[378861694,1755055041066,824.6,0.00029999,120]
[378861695,1755055042203,460.0,0.00029999,120]
[378861696,1755055043970,460.0,0.00029999,120]
[378861697,1755055044381,460.0,0.00029999,120]
[378861698,1755055045697,460.0,0.00029999,120]
[378861699,1755055051888,460.0,0.00029999,120]
[378861700,1755055061599,460.0,0.00029999,120]
[378861701,1755055065730,460.0,0.00029999,120]
[378861702,1755055067886,460.0,0.00029999,120]
[378861703,1755055070104,460.0,0.00029999,120]
[378861704,1755055070556,1360.27,0.00029999,120]
[378861705,1755055071996,460.0,0.00029999,120]
[378861706,1755055078978,460.0,0.00029999,120]
[378861707,1755055080338,460.0,0.00029999,120]
[378861708,1755055080933,460.0,0.00029999,120]
[378861709,1755055086198,460.0,0.00029999,120]
[378861710,1755055088739,460.0,0.00029999,120]
[378861711,1755055089156,460.0,0.00029999,120]
[378861712,1755055092344,4749.73,0.00029999,120]
[378861713,1755055094669,463.3158521,0.00029999,120]
[378861714,1755055095525,460.0,0.00029999,120]
[378861715,1755055095824,2352.91,0.00029999,120]
[378861716,1755055099771,1226.69,0.00029999,120]
[378861717,1755055100489,460.0,0.00029999,120]
[378861719,1755055107600,460.0,0.00029999,120]
[378861720,1755055107724,460.0,0.00029999,120]
[378861721,1755055110927,460.0,0.00029999,120]
[378861722,1755055112440,460.0,0.00029999,120]
[378861723,1755055115257,460.0,0.00029999,120]
[378861724,1755055117136,691.91,0.00029999,120]
[378861725,1755055118763,357.17654608,0.00029999,120]
[378861726,1755055128129,841.86,0.00029999,120]
[378861727,1755055130357,460.0,0.00029999,120]
[378861728,1755055133000,460.0,0.00029999,120]
[378861729,1755055137351,464.63568182,0.00029999,120]
[378861730,1755055139889,1238.41,0.00029999,120]
[378861731,1755055142477,1040.03,0.00029999,120]
[378861732,1755055143879,460.0,0.00029999,120]
[378861733,1755055149863,460.0,0.00029999,120]
[378861734,1755055153588,1015.62,0.00029999,120]
[378861735,1755055158403,460.0,0.00029999,120]
[378861736,1755055160593,460.0,0.00029999,120]
[378861737,1755055161803,460.0,0.00029999,120]
[378861738,1755055167199,460.0,0.00029999,120]
[378861739,1755055174280,460.0,0.00029999,120]
[378861740,1755055174802,489.22,0.00029999,120]
[378861741,1755055183680,463.1370043,0.00029999,120]
[378861742,1755055185122,467.12316427,0.00029999,120]
[378861743,1755055186259,460.0,0.00029999,120]
[378861744,1755055194032,460.0,0.00029999,120]
[378861745,1755055196415,482.3,0.00029999,120]
[378861746,1755055196536,460.0,0.00029999,120]
[378861747,1755055198685,460.0,0.00029999,120]
[378861748,1755055200584,464.73543904,0.00029999,120]
[378861749,1755055207240,471.53487372,0.00029999,120]
[378861750,1755055207501,460.0,0.00029999,120]
[378861751,1755055211264,460.0,0.00029999,120]
[378861752,1755055211654,460.0,0.00029999,120]
[378861753,1755055212320,460.0,0.00029999,120]
[378861754,1755055212571,460.0,0.00029999,120]
[378861755,1755055220173,460.0,0.00029999,120]
[378861756,1755055224443,460.0,0.00029999,120]
[378861757,1755055225136,549.85790067,0.00029999,120]
[378861758,1755055227038,460.0,0.00029999,120]
[378861759,1755055228091,460.0,0.00029999,120]
[378861760,1755055229643,460.0,0.00029999,120]
[378861761,1755055230335,460.0,0.00029999,120]
[378861762,1755055230477,460.0,0.00029999,120]
[378861763,1755055234193,499.939427,0.00029999,120]
[378861764,1755055235116,460.0,0.00029999,120]
[378861765,1755055237333,460.0,0.00029999,120]
[378861766,1755055238464,460.0,0.00029999,120]
[378861767,1755055239244,460.0,0.00029999,120]
[378861768,1755055239449,636.12067556,0.0001784,2]
[378861769,1755055239472,3931.82039371,0.0001784,2]
[378861770,1755055242299,1724.27,0.00029999,120]
[378861771,1755055245490,460.0,0.00029999,120]
[378861772,1755055251258,460.0,0.00029999,120]
[378861773,1755055255616,460.0,0.00029999,120]
[378861774,1755055259202,790.24,0.00029999,120]
[378861775,1755055259263,759.59,0.00029999,120]
[378861776,1755055260712,460.0,0.00029999,120]
[378861777,1755055262201,460.0,0.00029999,120]
[378861778,1755055262546,163.915198,0.00013699,2]
[378861779,1755055263674,2235.02,0.00029999,120]
[378861781,1755055270969,460.0,0.00029999,120]
[378861782,1755055276660,460.0,0.00029999,120]
[378861783,1755055278293,528.4,0.00029999,120]
[378861784,1755055280075,460.0,0.00029999,120]
[378861785,1755055280594,460.0,0.00029999,120]
[378861786,1755055286976,460.0,0.00029999,120]
[378861787,1755055288232,460.0,0.00029999,120]
[378861788,1755055288800,6058.17,0.00029999,120]
[378861789,1755055293484,460.0,0.00029999,120]
[378861790,1755055294937,460.0,0.00029999,120]
[378861791,1755055295366,460.0,0.00029999,120]
[378861792,1755055296964,460.0,0.00029999,120]
[378861793,1755055297027,460.0,0.00029999,120]
[378861794,1755055300664,460.0,0.00029999,120]
[378861795,1755055301671,460.0,0.00029999,120]
[378861796,1755055301855,460.0,0.00029999,120]
[378861797,1755055305980,460.0,0.00029999,120]
[378861798,1755055312788,460.0,0.00029999,120]
[378861799,1755055318355,529.5723741,0.00029999,120]
[378861800,1755055321177,460.0,0.00029999,120]
[378861801,1755055322474,1303.59,0.00029999,120]
[378861802,1755055322922,460.0,0.00029999,120]
[378861803,1755055325735,2254.88,0.00029999,120]
[378861804,1755055328335,476.20066652,0.00029999,120]
[378861805,1755055332944,460.0,0.00029999,120]
[378861806,1755055338443,460.0,0.00029999,120]
[378861807,1755055340891,460.0,0.00029999,120]
[378861808,1755055342230,460.0,0.00029999,120]
[378861809,1755055342329,460.0,0.00029999,120]
[378861810,1755055342720,460.0,0.00029999,120]
[378861811,1755055345957,460.0,0.00029999,120]
[378861812,1755055348549,4551.82,0.00029999,120]
[378861813,1755055351119,1175.57,0.00029999,120]
[378861814,1755055353628,460.0,0.00029999,120]
[378861815,1755055358929,460.0,0.00029999,120]
[378861816,1755055360213,460.0,0.00029999,120]
[378861817,1755055361439,460.0,0.00029999,120]
[378861818,1755055364531,996.69,0.00029999,120]
[378861819,1755055364982,460.0,0.00029999,120]
[378861820,1755055371269,663.08,0.00029999,120]
[378861821,1755055378324,806.78,0.00029999,120]
[378861822,1755055379741,460.0,0.00029999,120]
[378861823,1755055381641,468.06751751,0.00029999,120]
[378861824,1755055382914,460.0,0.00029999,120]
[378861825,1755055383120,460.0,0.00029999,120]
[378861826,1755055383406,460.0,0.00029999,120]
[378861827,1755055385495,460.0,0.00029999,120]
[378861828,1755055387520,460.0,0.00029999,120]
[378861829,1755055389845,973.3,0.00029999,120]
[378861830,1755055392361,460.0,0.00029999,120]
[378861831,1755055393520,1186.81,0.00029999,120]
[378861832,1755055396779,460.0,0.00029999,120]
[378861833,1755055400450,460.0,0.00029999,120]
[378861834,1755055409675,280.54328424,0.00029999,120]
[378861835,1755055414772,310.88735985,0.00029999,120]
[378861836,1755055415567,460.0,0.00029999,120]
[378861837,1755055416796,460.0,0.00029999,120]
[378861838,1755055416998,462.2,0.00029999,120]
[378861839,1755055422503,460.0,0.00029999,120]
[378861840,1755055422861,468.84,0.00029999,120]
[378861841,1755055426390,460.0,0.00029999,120]
[378861842,1755055428332,460.0,0.00029999,120]
[378861843,1755055428458,460.0,0.00029999,120]
[378861844,1755055428952,472.50031849,0.00029999,120]
[378861845,1755055429015,402.95089424,0.00029999,120]
[378861846,1755055430034,460.0,0.00029999,120]
[378861847,1755055430259,460.0,0.00029999,120]
[378861848,1755055434673,879.67,0.00029999,120]
[378861849,1755055434956,457.55481203,0.00029999,120]
[378861850,1755055438493,460.0,0.00029999,120]
[378861851,1755055441730,460.0,0.00029999,120]
[378861852,1755055441807,560.8137277,0.00029999,120]
[378861853,1755055443403,460.0,0.00029999,120]
[378861854,1755055443866,460.0,0.00029999,120]
[378861855,1755055446329,460.0,0.00029999,120]
[378861856,1755055447872,460.0,0.00029999,120]
[378861857,1755055450189,309.95020294,0.00029999,120]
[378861858,1755055451426,460.0,0.00029999,120]
[378861859,1755055452840,460.0,0.00029999,120]
[378861860,1755055455118,460.0,0.00029999,120]
[378861861,1755055455557,460.0,0.00029999,120]
[378861862,1755055458972,460.0,0.00029999,120]
[378861863,1755055460271,460.0,0.00029999,120]
[378861864,1755055461360,1652.42,0.00029999,120]
[378861865,1755055462540,460.0,0.00029999,120]
[378861866,1755055463090,460.0,0.00029999,120]
[378861867,1755055465640,460.0,0.00029999,120]
[378861868,1755055465920,460.0,0.00029999,120]
[378861869,1755055470467,460.0,0.00029999,120]
[378861870,1755055470666,460.0,0.00029999,120]
[378861871,1755055472328,460.0,0.00029999,120]
[378861872,1755055473815,460.0,0.00029999,120]
[378861873,1755055474271,460.0,0.00029999,120]
[378861874,1755055475092,460.0,0.00029999,120]
[378861875,1755055476797,460.0,0.00029999,120]
[378861876,1755055478387,757.32,0.00029999,120]
[378861877,1755055480755,460.0,0.00029999,120]
[378861878,1755055483387,600.6,0.00029999,120]
[378861879,1755055483804,460.0,0.00029999,120]
[378861880,1755055484700,470.84601076,0.00029999,120]
[378861881,1755055486681,647.47,0.00029999,120]
[378861882,1755055490496,460.0,0.00029999,120]
[378861883,1755055490887,460.0,0.00029999,120]
[378861884,1755055491018,460.0,0.00029999,120]
[378861885,1755055498879,460.0,0.00029999,120]
[378861886,1755055499040,2148.63,0.00029999,120]
[378861887,1755055501192,464.74137091,0.00029999,120]
[378861888,1755055502134,476.83307238,0.00029999,120]
[378861889,1755055502231,460.0,0.00029999,120]
[378861890,1755055502936,460.0,0.00029999,120]
[378861891,1755055505379,5805.74,0.00029999,120]
[378861892,1755055510898,460.0,0.00029999,120]
[378861893,1755055513394,460.0,0.00029999,120]
[378861894,1755055514077,727.94,0.00029999,120]
[378861895,1755055514667,460.0,0.00029999,120]
[378861896,1755055515845,460.0,0.00029999,120]
[378861897,1755055517091,460.0,0.00029999,120]
[378861898,1755055519249,460.0,0.00029999,120]
[378861899,1755055519324,470.84086598,0.00029999,120]
[378861900,1755055519779,460.0,0.00029999,120]
[378861901,1755055520877,460.0,0.00029999,120]
[378861902,1755055522107,460.0,0.00029999,120]
[378861903,1755055522771,460.0,0.00029999,120]
[378861905,1755055526641,460.0,0.00029999,120]
[378861906,1755055527132,460.0,0.00029999,120]
[378861907,1755055527951,460.0,0.00029999,120]
[378861908,1755055529056,460.0,0.00029999,120]
[378861909,1755055533310,460.0,0.00029999,120]
[378861910,1755055536288,460.0,0.00029999,120]
[378861911,1755055542301,563.76153713,0.00029999,120]
[378861912,1755055542405,460.0,0.00029999,120]
[378861913,1755055543079,2160.92,0.00029999,120]
[378861914,1755055544182,460.0,0.00029999,120]
[378861915,1755055548494,460.0,0.00029999,120]
[378861916,1755055548883,460.0,0.00029999,120]
[378861919,1755055561206,1286.64,0.00029999,120]
[378861920,1755055566218,460.0,0.00029999,120]
[378861921,1755055570563,310.28503261,0.00029999,120]
[378861922,1755055572442,460.0,0.00029999,120]
[378861923,1755055576645,460.0,0.00029999,120]
[378861924,1755055578597,460.0,0.00029999,120]
[378861925,1755055583506,460.0,0.00029999,120]
[378861926,1755055583759,460.0,0.00029999,120]
[378861927,1755055584022,4362.16,0.00029999,120]
[378861928,1755055586091,460.0,0.00029999,120]
[378861929,1755055586742,460.0,0.00029999,120]
[378861930,1755055598926,1212.35,0.00029999,120]
[378861932,1755055607285,955.16,0.00029999,120]
[378861933,1755055608388,635.45,0.00029999,120]
[378861934,1755055609341,460.0,0.00029999,120]
[378861935,1755055612212,460.0,0.00029999,120]
[378861936,1755055617596,460.0,0.00029999,120]
[378861937,1755055619451,932.75,0.00029999,120]
[378861938,1755055620098,460.0,0.00029999,120]
[378861941,1755055629336,854.22,0.00029999,120]
[378861942,1755055630182,460.0,0.00029999,120]
[378861944,1755055637975,460.0,0.00029999,120]
[378861945,1755055645363,1279.75119418,0.0001784,2]
[378861946,1755055648258,460.0,0.00029999,120]
[378861947,1755055648504,460.0,0.00029999,120]
[378861948,1755055649874,1137.36,0.00029999,120]
[378861949,1755055654937,465.47288352,0.00029999,120]
[378861950,1755055656429,460.0,0.00029999,120]
[378861951,1755055658425,460.0,0.00029999,120]
[378861952,1755055663693,460.0,0.00029999,120]
[378861953,1755055666025,460.0,0.00029999,120]
[378861961,1755055667598,503.09160926,0.00029999,120]
[378861962,1755055669672,463.06055235,0.00029999,120]
[378861964,1755055676455,460.0,0.00029999,120]
[378861966,1755055679529,460.0,0.00029999,120]
[378861967,1755055679617,460.0,0.00029999,120]
[378861968,1755055681882,460.0,0.00029999,120]
[378861969,1755055682755,460.0,0.00029999,120]
[378861970,1755055685371,233.74676283,0.00029999,120]
[378861972,1755055691382,468.47,0.00029999,120]
[378861973,1755055694280,465.86222669,0.00029999,120]
[378861974,1755055695287,460.0,0.00029999,120]
[378861975,1755055699075,460.0,0.00029999,120]
[378861976,1755055709527,273.82714932,0.00029999,120]
[378861977,1755055710904,460.0,0.00029999,120]
[378861978,1755055716125,460.0,0.00029999,120]
[378861979,1755055717775,305.0,0.00029999,120]
[378861980,1755055717832,460.0,0.00029999,120]
[378861981,1755055718983,460.0,0.00029999,120]
[378861982,1755055722303,460.0,0.00029999,120]
[378861983,1755055726417,552.7928306,0.00029999,120]
[378861984,1755055726476,413.2669033,0.00029999,120]
[378861985,1755055726744,460.0,0.00029999,120]
[378861986,1755055728343,460.0,0.00029999,120]
[378861987,1755055731043,460.0,0.00029999,120]
[378861988,1755055734234,460.0,0.00029999,120]
[378861989,1755055736292,460.0,0.00029999,120]
[378861990,1755055741099,508.37976968,0.00029999,120]
[378861991,1755055742813,460.0,0.00029999,120]
[378861993,1755055751160,2104.61,0.00029999,120]
[378861994,1755055753026,1583.57,0.00029999,120]
[378862002,1755055755909,460.0,0.00029999,120]
[378862003,1755055756834,460.0,0.00029999,120]
[378862004,1755055759244,460.0,0.00029999,120]
[378862005,1755055762000,460.0,0.00029999,120]
[378862006,1755055762497,556.82947604,0.00029999,120]
[378862007,1755055766817,460.0,0.00029999,120]
[378862008,1755055773878,460.0,0.00029999,120]
[378862009,1755055776185,725.76,0.00029999,120]
[378862010,1755055796387,460.0,0.00029999,120]
[378862011,1755055807362,463.75321121,0.00029999,120]
[378862013,1755055814469,5777.39,0.00029999,120]
[378862014,1755055816443,462.1067422,0.00029999,120]
[378862015,1755055816789,460.0,0.00029999,120]
[378862016,1755055824070,460.0,0.00029999,120]
[378862017,1755055824636,460.0,0.00029999,120]
[378862018,1755055825121,431.0,0.0003,120]
[378862019,1755055825386,460.0,0.00029999,120]
[378862020,1755055826020,1268.84,0.00029999,120]
[378862021,1755055829024,460.0,0.00029999,120]
[378862022,1755055829087,697.61,0.00029999,120]
[378862064,1755055832554,-459.03507319,0.00018272,2]
[378862107,1755055838421,-740.96492681,0.00018272,2]
[378862108,1755055838431,-1200.0,0.00018273,2]
[378862109,1755055838441,-300.0,0.00018273,2]
[378862110,1755055838450,-255.0,0.00018273,2]
[378862111,1755055838460,-300.0,0.00018273,2]
[378862112,1755055838469,-300.0,0.00018273,2]
[378862113,1755055838478,-6270.8721921,0.00018276,2]
[378862114,1755055838487,-18839.93056071,0.00018639,2]
[378862115,1755055838498,-200.0,0.00018639,15]
[378862116,1755055838510,-200.0,0.00018639,15]
[378862117,1755055838519,-200.0,0.00018639,15]
[378862118,1755055838529,-200.0,0.00018639,15]
[378862119,1755055838538,-328.13261207,0.00018668,2]
[378862120,1755055838549,-8718.01273854,0.00018679,2]
[378862121,1755055838561,-8295.62645557,0.00018679,2]
[378862123,1755055838572,-7886.36080589,0.00018679,2]
[378862124,1755055838583,-500.0,0.00019176,2]
[378862126,1755055838593,-192.90567818,0.00019176,2]
[378862128,1755055838602,-500.0,0.00019176,2]
[378862130,1755055838611,-500.0,0.00019176,2]
[378862132,1755055838620,-506.73842889,0.00019176,2]
[378862134,1755055838629,-371.17758489,0.00019176,2]
[378862136,1755055838639,-500.0,0.00019176,2]
[378862138,1755055838648,-500.0,0.00019176,2]
[378862140,1755055838657,-500.0,0.00019176,2]
[378862142,1755055838668,-500.0,0.00019176,2]
[378862144,1755055838678,-500.0,0.00019176,2]
[378862146,1755055838687,-386.99084761,0.00019176,2]
[378862148,1755055838696,-500.0,0.00019176,2]
[378862150,1755055838705,-243.44218063,0.00019176,2]
[378862152,1755055838714,-534.59204421,0.00019176,2]
[378862154,1755055838723,-5000.0,0.00019178,2]
[378862156,1755055838733,-229.44759442,0.00019178,2]
[378862158,1755055838742,-170.28197866,0.00019229,2]
[378862160,1755055838752,-5000.62686577,0.00019229,2]
[378862162,1755055838763,-187.38397611,0.00019262,2]
[378862164,1755055838777,-500.0,0.00019262,2]
[378862166,1755055838787,-500.0,0.00019262,2]
[378862168,1755055838796,-500.0,0.00019262,2]
[378862170,1755055838806,-527.553405,0.00019262,2]
[378862172,1755055838815,-151.0,0.00019262,2]
[378862174,1755055838824,-17842.522448,0.00019262,2]
[378862176,1755055838833,-151.0,0.00019262,2]
[378862178,1755055838842,-151.0,0.00019262,2]
[378862180,1755055838851,-151.0,0.00019262,2]
[378862182,1755055838861,-151.0,0.00019262,2]
[378862184,1755055838870,-151.0,0.00019262,2]
[378862186,1755055838880,-151.0,0.00019262,2]
[378862188,1755055838888,-151.0,0.00019262,2]
[378862190,1755055838897,-151.0,0.00019262,2]
[378862192,1755055838907,-151.0,0.00019262,2]
[378862194,1755055838915,-151.0,0.00019262,2]
[378862196,1755055838924,-3038.99,0.00019272,2]
[378862198,1755055838934,-500.0,0.00019272,2]
[378862200,1755055838943,-478.24678934,0.00019272,2]
[378862202,1755055838953,-500.0,0.00019272,2]
[378862204,1755055838962,-500.0,0.00019272,2]
[378862206,1755055838972,-500.0,0.00019272,2]
[378862208,1755055838981,-500.0,0.00019272,2]
[378862210,1755055838991,-500.0,0.00019272,2]
[378862212,1755055839000,-500.0,0.00019272,2]
[378862214,1755055839012,-500.0,0.00019272,2]
[378862216,1755055839021,-500.0,0.00019272,2]
[378862218,1755055839031,-500.0,0.00019272,2]
[378862220,1755055839046,-500.0,0.00019272,2]
[378862222,1755055839055,-500.0,0.00019272,2]
[378862224,1755055839065,-500.0,0.00019272,2]
[378862227,1755055839075,-296.71820834,0.00019272,2]
[378862230,1755055839084,-500.0,0.00019272,2]
[378862233,1755055839093,-500.0,0.00019272,2]